[Event "MCR zen 2022"]
[Site "Hotel Opera, Jaroměřice nad Rokytnou, Czech Republic"]
[Date "????.??.??"]
[Round "3.1"]
[White "Novosadova, Kristyna"]
[Black "Pilsova, Karolina"]
[Result "0-1"]
[TimeControl "90 min/40 moves + 30 min + 30s/move"]
[WhiteElo "2147"]
[BlackElo "2229"]

1. e4 {[%clk 01:30:54]} {[%emt 00:00:05]} e5 {[%clk 01:30:52]} {[%emt
00:00:09]} 2. Nf3 {[%clk 01:31:18]} {[%emt 00:00:06]} Nc6 {[%clk 01:31:17]}
{[%emt 00:00:05]} 3. Bc4 {[%clk 01:31:39]} {[%emt 00:00:10]} Nf6 {[%clk
01:31:31]} {[%emt 00:00:15]} 4. d4 {[%clk 01:31:54]} {[%emt 00:00:15]} exd4
{[%clk 01:31:38]} {[%emt 00:00:22]} 5. e5 {[%clk 01:32:18]} {[%emt 00:00:07]}
d5 {[%clk 01:31:37]} {[%emt 00:00:32]} 6. Bb5 {[%clk 01:32:41]} {[%emt
00:00:07]} Nd7 {[%clk 01:31:25]} {[%emt 00:00:42]} 7. O-O {[%clk 01:30:22]}
{[%emt 00:02:49]} Be7 {[%clk 01:30:33]} {[%emt 00:01:22]} 8. e6 {[%clk
01:26:21]} {[%emt 00:04:31]} fxe6 {[%clk 01:27:32]} {[%emt 00:03:31]} 9. Bxc6
{[%clk 01:26:03]} {[%emt 00:00:48]} bxc6 {[%clk 01:28:00]} {[%emt 00:00:03]} 10.
Nxd4 {[%clk 01:26:23]} {[%emt 00:00:10]} Nb8 {[%clk 01:27:10]} {[%emt
00:01:20]} 11. Qh5+ {[%clk 01:18:19]} {[%emt 00:08:33]} g6 {[%clk 01:25:36]}
{[%emt 00:02:05]} 12. Qh6 {[%clk 01:00:02]} {[%emt 00:18:47]} c5 {[%clk
01:19:51]} {[%emt 00:06:15]} 13. Nf3 {[%clk 00:58:42]} {[%emt 00:01:49]} Nc6
{[%clk 01:17:32]} {[%emt 00:02:50]} 14. Re1 {[%clk 00:56:38]} {[%emt 00:02:34]}
Nd4 {[%clk 01:07:41]} {[%emt 00:10:21]} 15. Nxd4 {[%clk 00:53:58]} {[%emt
00:03:10]} cxd4 {[%clk 01:07:57]} {[%emt 00:00:14]} 16. Bf4 {[%clk 00:53:55]}
{[%emt 00:00:31]} Bf8 {[%clk 00:58:39]} {[%emt 00:09:49]} 17. Qh3 {[%clk
00:53:54]} {[%emt 00:00:30]} Bd6 {[%clk 00:58:40]} {[%emt 00:00:31]} 18. Be5
{[%clk 00:48:46]} {[%emt 00:05:37]} O-O {[%clk 00:44:42]} {[%emt 00:14:28]} 19.
Nd2 {[%clk 00:39:07]} {[%emt 00:10:08]} Qg5 {[%clk 00:41:37]} {[%emt 00:03:35]}
20. Bxd6 {[%clk 00:35:13]} {[%emt 00:04:24]} cxd6 {[%clk 00:41:43]} {[%emt
00:00:23]} 21. Rad1 {[%clk 00:31:27]} {[%emt 00:04:16]} Qf4 {[%clk 00:37:16]}
{[%emt 00:04:58]} 22. Qg3 {[%clk 00:30:22]} {[%emt 00:01:35]} e5 {[%clk
00:34:10]} {[%emt 00:03:36]} 23. Qxf4 {[%clk 00:25:47]} {[%emt 00:05:05]} Rxf4
{[%clk 00:34:33]} {[%emt 00:00:06]} 24. g3 {[%clk 00:25:56]} {[%emt 00:00:21]}
Rf7 {[%clk 00:34:11]} {[%emt 00:00:52]} 25. f4 {[%clk 00:24:39]} {[%emt
00:01:47]} Bg4 {[%clk 00:29:48]} {[%emt 00:04:54]} 26. fxe5 {[%clk 00:20:24]}
{[%emt 00:04:45]} Bxd1 {[%clk 00:19:06]} {[%emt 00:11:12]} 27. e6 {[%clk
00:20:47]} {[%emt 00:00:06]} Rc7 {[%clk 00:19:22]} {[%emt 00:00:14]} 28. Rxd1
{[%clk 00:21:03]} {[%emt 00:00:15]} Rxc2 {[%clk 00:19:37]} {[%emt 00:00:15]} 29.
Nf3 {[%clk 00:20:07]} {[%emt 00:01:26]} Rxb2 {[%clk 00:18:27]} {[%emt
00:01:41]} 30. Nxd4 {[%clk 00:17:21]} {[%emt 00:03:15]} Re8 {[%clk 00:17:18]}
{[%emt 00:01:40]} 31. a3 {[%clk 00:16:07]} {[%emt 00:01:45]} Kg7 {[%clk
00:14:31]} {[%emt 00:03:16]} 32. g4 {[%clk 00:13:21]} {[%emt 00:03:16]} Kf6
{[%clk 00:13:24]} {[%emt 00:01:38]} 33. Re1 {[%clk 00:13:40]} {[%emt 00:00:11]}
a6 {[%clk 00:12:44]} {[%emt 00:01:11]} 34. h4 {[%clk 00:13:09]} {[%emt
00:01:00]} h6 {[%clk 00:12:07]} {[%emt 00:01:07]} 35. a4 {[%clk 00:11:51]}
{[%emt 00:01:48]} Ra2 {[%clk 00:12:04]} {[%emt 00:00:33]} 36. a5 {[%clk
00:12:08]} {[%emt 00:00:13]} Ra4 {[%clk 00:12:00]} {[%emt 00:00:33]} 0-1

[Event "MCR zen 2022"]
[Site "Hotel Opera, Jaroměřice nad Rokytnou, Czech Republic"]
[Date "????.??.??"]
[Round "3.2"]
[White "Koubova, Anna Marie"]
[Black "Sikorova, Olga"]
[Result "1-0"]
[TimeControl "90 min/40 moves + 30 min + 30s/move"]
[WhiteElo "2115"]
[BlackElo "2173"]

1. d4 {[%clk 01:30:53]} {[%emt 00:00:07]} Nf6 {[%clk 01:30:50]} {[%emt
00:00:10]} 2. c4 {[%clk 01:31:13]} {[%emt 00:00:10]} e6 {[%clk 01:31:07]}
{[%emt 00:00:13]} 3. Nf3 {[%clk 01:31:12]} {[%emt 00:00:30]} c5 {[%clk
01:29:37]} {[%emt 00:02:01]} 4. Nc3 {[%clk 01:28:24]} {[%emt 00:03:19]} cxd4
{[%clk 01:29:33]} {[%emt 00:00:35]} 5. Nxd4 {[%clk 01:28:33]} {[%emt 00:00:20]}
a6 {[%clk 01:29:55]} {[%emt 00:00:08]} 6. e4 {[%clk 01:14:09]} {[%emt
00:14:54]} Qc7 {[%clk 01:30:07]} {[%emt 00:00:18]} 7. Be2 {[%clk 01:13:02]}
{[%emt 00:01:36]} b6 {[%clk 01:29:44]} {[%emt 00:00:53]} 8. O-O {[%clk
01:09:36]} {[%emt 00:03:56]} Bb7 {[%clk 01:27:43]} {[%emt 00:02:32]} 9. Bd3
{[%clk 01:04:28]} {[%emt 00:05:38]} Nc6 {[%clk 01:23:10]} {[%emt 00:05:04]} 10.
Nf3 {[%clk 00:59:05]} {[%emt 00:05:52]} Bd6 {[%clk 01:11:42]} {[%emt 00:11:57]}
11. h3 {[%clk 00:55:45]} {[%emt 00:03:51]} Ne5 {[%clk 01:05:38]} {[%emt
00:06:34]} 12. Be3 {[%clk 00:53:09]} {[%emt 00:03:06]} h5 {[%clk 00:54:48]}
{[%emt 00:11:20]} 13. Nxe5 {[%clk 00:45:50]} {[%emt 00:07:50]} Bxe5 {[%clk
00:55:15]} {[%emt 00:00:03]} 14. Na4 {[%clk 00:45:00]} {[%emt 00:01:20]} Nxe4
{[%clk 00:40:26]} {[%emt 00:15:19]} 15. Nxb6 {[%clk 00:43:32]} {[%emt
00:01:59]} Rb8 {[%clk 00:39:36]} {[%emt 00:01:19]} 16. Rc1 {[%clk 00:30:21]}
{[%emt 00:13:41]} Nf6 {[%clk 00:30:32]} {[%emt 00:09:34]} 17. Be2 {[%clk
00:24:15]} {[%emt 00:06:36]} g5 {[%clk 00:25:05]} {[%emt 00:05:58]} 18. b4
{[%clk 00:22:24]} {[%emt 00:02:21]} g4 {[%clk 00:19:41]} {[%emt 00:05:54]} 19.
h4 {[%clk 00:22:40]} {[%emt 00:00:14]} Ne4 {[%clk 00:19:47]} {[%emt 00:00:24]}
20. c5 {[%clk 00:20:09]} {[%emt 00:03:01]} Bc6 {[%clk 00:11:53]} {[%emt
00:08:24]} 21. Qe1 {[%clk 00:15:45]} {[%emt 00:04:54]} Bf6 {[%clk 00:08:50]}
{[%emt 00:03:33]} 22. Bd3 {[%clk 00:13:11]} {[%emt 00:03:04]} Rxb6 {[%clk
00:02:00]} {[%emt 00:07:20]} 23. cxb6 {[%clk 00:12:12]} {[%emt 00:01:29]} Qb7
{[%clk 00:02:03]} {[%emt 00:00:27]} 24. Bxe4 {[%clk 00:03:54]} {[%emt
00:08:48]} Bxe4 {[%clk 00:02:32]} {[%emt 00:00:01]} 25. Rc7 {[%clk 00:04:16]}
{[%emt 00:00:07]} Qd5 {[%clk 00:00:38]} {[%emt 00:02:24]} 26. Qd1 {[%clk
00:03:33]} {[%emt 00:01:12]} Bd3 {[%clk 00:00:54]} {[%emt 00:00:15]} 27. Re1
{[%clk 00:03:01]} {[%emt 00:01:02]} O-O {[%clk 00:00:54]} {[%emt 00:00:31]} 28.
Rc5 {[%clk 00:03:00]} {[%emt 00:00:30]} Qe4 {[%clk 00:00:38]} {[%emt 00:00:46]}
29. Bh6 {[%clk 00:02:53]} {[%emt 00:00:36]} Qxb4 {[%clk 00:01:01]} {[%emt
00:00:08]} 30. Bxf8 {[%clk 00:03:16]} {[%emt 00:00:07]} Kxf8 {[%clk 00:01:26]}
{[%emt 00:00:04]} 31. b7 {[%clk 00:02:43]} {[%emt 00:01:03]} Kg7 {[%clk
00:01:20]} {[%emt 00:00:36]} 32. b8=Q {[%clk 00:02:44]} {[%emt 00:00:28]} Qxb8
{[%clk 00:01:05]} {[%emt 00:00:46]} 33. Qxd3 {[%clk 00:02:49]} {[%emt
00:00:25]} g3 {[%clk 00:01:29]} {[%emt 00:00:07]} 34. fxg3 {[%clk 00:01:36]}
{[%emt 00:01:43]} Qb6 {[%clk 00:01:39]} {[%emt 00:00:18]} 35. Qe3 {[%clk
00:01:39]} {[%emt 00:00:27]} d5 {[%clk 00:01:56]} {[%emt 00:00:14]} 36. Kh1
{[%clk 00:01:29]} {[%emt 00:00:40]} d4 {[%clk 00:01:36]} {[%emt 00:00:51]} 37.
Rg5+ {[%clk 00:01:26]} {[%emt 00:00:32]} Kf8 {[%clk 00:00:54]} {[%emt
00:01:12]} 38. Qa3+ {[%clk 00:01:05]} {[%emt 00:00:50]} Be7 {[%clk 00:01:22]}
{[%emt 00:00:01]} 39. Rg8+ {[%clk 00:01:11]} {[%emt 00:00:24]} Kxg8 {[%clk
00:01:51]} {[%emt 00:00:01]} 40. Qxe7 {[%clk 00:01:33]} {[%emt 00:00:08]} 1-0

[Event "MCR zen 2022"]
[Site "Hotel Opera, Jaroměřice nad Rokytnou, Czech Republic"]
[Date "????.??.??"]
[Round "3.3"]
[White "Trasakova, Adela"]
[Black "Lhotska, Anna"]
[Result "0-1"]
[TimeControl "90 min/40 moves + 30 min + 30s/move"]
[WhiteElo "1842"]
[BlackElo "2029"]

1. d4 {[%clk 01:30:58]} {[%emt 00:00:01]} d5 {[%clk 01:30:54]} {[%emt
00:00:06]} 2. Nf3 {[%clk 01:31:25]} {[%emt 00:00:03]} Nf6 {[%clk 01:31:03]}
{[%emt 00:00:20]} 3. g3 {[%clk 01:31:53]} {[%emt 00:00:02]} e6 {[%clk
01:31:24]} {[%emt 00:00:09]} 4. Bg2 {[%clk 01:32:21]} {[%emt 00:00:02]} b5
{[%clk 01:31:48]} {[%emt 00:00:07]} 5. O-O {[%clk 01:32:40]} {[%emt 00:00:10]}
Nbd7 {[%clk 01:32:05]} {[%emt 00:00:13]} 6. a4 {[%clk 01:31:31]} {[%emt
00:01:40]} b4 {[%clk 01:32:19]} {[%emt 00:00:15]} 7. c4 {[%clk 01:31:04]}
{[%emt 00:00:57]} bxc3 {[%clk 01:32:15]} {[%emt 00:00:34]} 8. Nxc3 {[%clk
01:30:00]} {[%emt 00:01:35]} Be7 {[%clk 01:31:03]} {[%emt 00:01:42]} 9. Bf4
{[%clk 01:27:21]} {[%emt 00:03:08]} c6 {[%clk 01:31:05]} {[%emt 00:00:28]} 10.
a5 {[%clk 01:23:21]} {[%emt 00:04:31]} Ba6 {[%clk 01:29:33]} {[%emt 00:02:02]}
11. Qa4 {[%clk 01:19:18]} {[%emt 00:04:33]} Rc8 {[%clk 01:27:52]} {[%emt
00:02:10]} 12. Rfc1 {[%clk 01:14:48]} {[%emt 00:05:00]} O-O {[%clk 01:26:58]}
{[%emt 00:01:25]} 13. b4 {[%clk 01:12:24]} {[%emt 00:02:54]} h6 {[%clk
01:21:02]} {[%emt 00:06:26]} 14. b5 {[%clk 01:06:39]} {[%emt 00:06:15]} cxb5
{[%clk 01:19:05]} {[%emt 00:02:27]} 15. Nxb5 {[%clk 01:06:47]} {[%emt
00:00:22]} Rxc1+ {[%clk 01:18:26]} {[%emt 00:01:10]} 16. Rxc1 {[%clk 01:06:33]}
{[%emt 00:00:44]} g5 {[%clk 01:17:13]} {[%emt 00:01:43]} 17. Bc7 {[%clk
00:56:50]} {[%emt 00:10:13]} Qa8 {[%clk 01:16:34]} {[%emt 00:01:09]} 18. Be5
{[%clk 00:48:31]} {[%emt 00:08:49]} Rc8 {[%clk 01:09:00]} {[%emt 00:08:04]} 19.
Rc7 {[%clk 00:44:33]} {[%emt 00:04:28]} Bd8 {[%clk 00:58:03]} {[%emt 00:11:27]}
20. Rxc8 {[%clk 00:35:23]} {[%emt 00:09:40]} Qxc8 {[%clk 00:57:59]} {[%emt
00:00:34]} 21. Bf1 {[%clk 00:33:08]} {[%emt 00:02:45]} Qc6 {[%clk 00:43:59]}
{[%emt 00:14:30]} 22. e3 {[%clk 00:32:47]} {[%emt 00:00:51]} Ne4 {[%clk
00:42:27]} {[%emt 00:02:02]} 23. g4 {[%clk 00:30:35]} {[%emt 00:02:42]} Qc1
{[%clk 00:36:12]} {[%emt 00:06:45]} 24. Bg3 {[%clk 00:28:17]} {[%emt 00:02:48]}
Qb1 {[%clk 00:26:37]} {[%emt 00:10:05]} 25. h3 {[%clk 00:25:22]} {[%emt
00:03:24]} Ndf6 {[%clk 00:25:00]} {[%emt 00:02:07]} 26. Kg2 {[%clk 00:16:36]}
{[%emt 00:09:16]} Nxg3 {[%clk 00:20:00]} {[%emt 00:05:30]} 27. fxg3 {[%clk
00:17:04]} {[%emt 00:00:02]} Qb2+ {[%clk 00:13:46]} {[%emt 00:06:43]} 28. Kh1
{[%clk 00:17:32]} {[%emt 00:00:02]} Qf2 {[%clk 00:09:48]} {[%emt 00:04:28]} 29.
Bg2 {[%clk 00:16:45]} {[%emt 00:01:17]} Ne4 {[%clk 00:08:27]} {[%emt 00:01:51]}
30. Nd6 {[%emt 00:06:59]} Nxd6 {[%clk 00:04:29]} {[%emt 00:00:18]} 31. Qc6
{[%clk 00:13:04]} {[%emt 00:01:52]} Bf1 {[%clk 00:04:36]} {[%emt 00:00:22]} 32.
Bxf1 {[%clk 00:12:39]} {[%emt 00:00:55]} Qxf1+ {[%clk 00:04:48]} {[%emt
00:00:18]} 33. Ng1 {[%clk 00:13:07]} {[%emt 00:00:03]} Ne4 {[%clk 00:04:52]}
{[%emt 00:00:25]} 34. Qe8+ {[%clk 00:12:37]} {[%emt 00:01:01]} Kg7 {[%clk
00:05:11]} {[%emt 00:00:11]} 35. Qxd8 {[%clk 00:12:58]} {[%emt 00:00:10]} Nxg3+
{[%clk 00:05:33]} {[%emt 00:00:08]} 36. Kh2 {[%clk 00:13:27]} Qf2# {[%clk
00:05:53]} {[%emt 00:00:12]} 0-1

[Event "MCR zen 2022"]
[Site "Hotel Opera, Jaroměřice nad Rokytnou, Czech Republic"]
[Date "????.??.??"]
[Round "3.4"]
[White "Richterova, Natasa"]
[Black "Petrova, Kristyna"]
[Result "1/2-1/2"]
[TimeControl "90 min/40 moves + 30 min + 30s/move"]
[WhiteElo "2181"]
[BlackElo "2264"]

1. Nf3 {[%clk 01:30:06]} {[%emt 00:00:53]} d5 {[%clk 01:30:45]} {[%emt
00:00:15]} 2. c4 {[%clk 01:30:24]} {[%emt 00:00:12]} e6 {[%clk 01:30:16]}
{[%emt 00:00:59]} 3. e3 {[%clk 01:29:22]} {[%emt 00:01:32]} Nf6 {[%clk
01:30:12]} {[%emt 00:00:34]} 4. Nc3 {[%clk 01:29:41]} {[%emt 00:00:12]} Be7
{[%clk 01:24:01]} {[%emt 00:06:41]} 5. b3 {[%clk 01:29:44]} {[%emt 00:00:26]}
O-O {[%clk 01:22:13]} {[%emt 00:02:19]} 6. Bb2 {[%clk 01:29:58]} {[%emt
00:00:16]} c5 {[%clk 01:19:25]} {[%emt 00:03:17]} 7. cxd5 {[%clk 01:29:55]}
{[%emt 00:00:34]} exd5 {[%clk 01:11:20]} {[%emt 00:08:35]} 8. d4 {[%clk
01:30:11]} {[%emt 00:00:14]} Nc6 {[%clk 01:11:45]} {[%emt 00:00:05]} 9. Be2
{[%clk 01:30:20]} {[%emt 00:00:21]} Bg4 {[%clk 01:04:37]} {[%emt 00:07:38]} 10.
O-O {[%clk 01:25:34]} {[%emt 00:05:16]} Bxf3 {[%clk 00:58:03]} {[%emt
00:07:04]} 11. Bxf3 {[%clk 01:21:15]} {[%emt 00:04:49]} cxd4 {[%clk 00:58:26]}
{[%emt 00:00:08]} 12. exd4 {[%clk 01:21:37]} {[%emt 00:00:07]} Re8 {[%clk
00:57:17]} {[%emt 00:01:39]} 13. Re1 {[%clk 01:21:49]} {[%emt 00:00:18]} Qd7
{[%clk 00:55:47]} {[%emt 00:02:01]} 14. a3 {[%clk 01:15:44]} {[%emt 00:06:35]}
Qf5 {[%clk 00:49:49]} {[%emt 00:06:27]} 15. b4 {[%clk 01:06:31]} {[%emt
00:09:44]} Bd6 {[%clk 00:46:33]} {[%emt 00:03:45]} 16. Nb5 {[%clk 01:01:49]}
{[%emt 00:05:12]} Rxe1+ {[%clk 00:41:25]} {[%emt 00:05:39]} 17. Qxe1 {[%clk
01:02:18]} Re8 {[%clk 00:41:24]} {[%emt 00:00:31]} 18. Qb1 {[%clk 01:00:06]}
{[%emt 00:02:42]} Qxb1+ {[%clk 00:33:23]} {[%emt 00:08:31]} 19. Rxb1 {[%clk
01:00:25]} {[%emt 00:00:10]} Bb8 {[%clk 00:33:50]} {[%emt 00:00:03]} 20. g3
{[%clk 00:47:50]} {[%emt 00:13:05]} a6 {[%clk 00:28:40]} {[%emt 00:05:40]} 21.
Nc3 {[%clk 00:48:19]} {[%emt 00:00:01]} Nxd4 {[%clk 00:28:29]} {[%emt
00:00:41]} 22. Bg2 {[%clk 00:42:25]} {[%emt 00:06:23]} Nc6 {[%clk 00:11:47]}
{[%emt 00:17:13]} 23. Nxd5 {[%clk 00:41:30]} {[%emt 00:01:24]} Nxd5 {[%clk
00:11:46]} {[%emt 00:00:32]} 24. Bxd5 {[%clk 00:41:53]} {[%emt 00:00:07]} h5
{[%clk 00:09:44]} {[%emt 00:02:31]} 25. h4 {[%clk 00:40:05]} {[%emt 00:02:18]}
Ba7 {[%clk 00:08:52]} {[%emt 00:01:22]} 26. Kf1 {[%clk 00:37:20]} {[%emt
00:03:14]} Rd8 {[%clk 00:08:01]} {[%emt 00:01:21]} 27. Rd1 {[%clk 00:37:27]}
{[%emt 00:00:23]} Kf8 {[%clk 00:08:08]} {[%emt 00:00:23]} 28. Bc3 {[%clk
00:31:45]} {[%emt 00:06:13]} g6 {[%clk 00:06:29]} {[%emt 00:02:09]} 29. Rd2
{[%clk 00:30:31]} {[%emt 00:01:43]} Rd7 {[%clk 00:06:14]} {[%emt 00:00:46]} 30.
Ke2 {[%clk 00:29:43]} {[%emt 00:01:18]} Ke8 {[%clk 00:04:34]} {[%emt 00:02:11]}
31. a4 {[%clk 00:26:55]} {[%emt 00:03:18]} Kf8 {[%clk 00:02:55]} {[%emt
00:02:09]} 32. b5 {[%clk 00:27:07]} {[%emt 00:00:18]} axb5 {[%clk 00:02:33]}
{[%emt 00:00:52]} 33. axb5 {[%clk 00:27:36]} {[%emt 00:00:01]} Nd8 {[%clk
00:01:27]} {[%emt 00:01:36]} 34. Ba5 {[%clk 00:27:14]} {[%emt 00:00:52]} Bc5
{[%clk 00:01:22]} {[%emt 00:00:35]} 35. f3 {[%clk 00:24:29]} {[%emt 00:03:15]}
b6 {[%clk 00:01:15]} {[%emt 00:00:37]} 36. Bc3 {[%clk 00:24:30]} {[%emt
00:00:28]} Ke7 {[%clk 00:01:34]} {[%emt 00:00:11]} 37. g4 {[%clk 00:22:18]}
{[%emt 00:02:43]} Ne6 {[%clk 00:01:17]} {[%emt 00:00:47]} 38. Kf1 {[%clk
00:16:06]} {[%emt 00:06:41]} 1/2-1/2

[Event "MCR zen 2022"]
[Site "Hotel Opera, Jaroměřice nad Rokytnou, Czech Republic"]
[Date "????.??.??"]
[Round "3.5"]
[White "Zelbova, Lada"]
[Black "Nemcova, Karin"]
[Result "1-0"]
[TimeControl "90 min/40 moves + 30 min + 30s/move"]
[WhiteClock "00:10:29"]
[BlackClock "00:23:56"]
[WhiteElo "1967"]
[BlackElo "2181"]

1. e4 {[%clk 01:30:56]} {[%emt 00:00:03]} c5 {[%clk 01:30:53]} {[%emt
00:00:07]} 2. Nf3 {[%clk 01:31:20]} {[%emt 00:00:06]} d6 {[%clk 01:31:17]}
{[%emt 00:00:07]} 3. d4 {[%clk 01:31:43]} {[%emt 00:00:07]} cxd4 {[%clk
01:31:41]} {[%emt 00:00:06]} 4. Nxd4 {[%clk 01:32:08]} {[%emt 00:00:04]} Nf6
{[%clk 01:32:01]} {[%emt 00:00:10]} 5. Nc3 {[%clk 01:32:31]} {[%emt 00:00:07]}
a6 {[%clk 01:32:26]} {[%emt 00:00:06]} 6. Be2 {[%clk 01:32:46]} {[%emt
00:00:15]} e5 {[%clk 01:32:47]} {[%emt 00:00:09]} 7. Nb3 {[%clk 01:33:09]}
{[%emt 00:00:07]} Be7 {[%clk 01:33:09]} {[%emt 00:00:08]} 8. Be3 {[%clk
01:33:19]} {[%emt 00:00:19]} Be6 {[%clk 01:33:23]} {[%emt 00:00:17]} 9. Nd5
{[%clk 01:32:52]} {[%emt 00:00:57]} Nbd7 {[%clk 01:33:32]} {[%emt 00:00:21]} 10.
Qd3 {[%clk 01:32:56]} {[%emt 00:00:26]} Rc8 {[%clk 01:32:36]} {[%emt 00:01:26]}
11. a4 {[%clk 01:30:39]} {[%emt 00:02:47]} O-O {[%clk 01:29:05]} {[%emt
00:04:01]} 12. O-O {[%clk 01:28:45]} {[%emt 00:02:24]} Nc5 {[%clk 01:23:48]}
{[%emt 00:05:48]} 13. Nxc5 {[%clk 01:26:21]} {[%emt 00:02:53]} dxc5 {[%clk
01:23:38]} {[%emt 00:00:39]} 14. c4 {[%clk 01:25:53]} {[%emt 00:00:58]} Nd7
{[%clk 01:18:51]} {[%emt 00:05:18]} 15. a5 {[%clk 01:18:13]} {[%emt 00:08:09]}
Bg5 {[%clk 01:14:16]} {[%emt 00:05:05]} 16. Rfd1 {[%clk 01:03:38]} {[%emt
00:15:05]} Bxe3 {[%clk 01:12:42]} {[%emt 00:02:05]} 17. Qxe3 {[%clk 01:02:52]}
{[%emt 00:01:15]} Qe8 {[%clk 01:03:06]} {[%emt 00:10:04]} 18. Ra3 {[%clk
00:54:28]} {[%emt 00:08:55]} Nb8 {[%clk 00:54:36]} {[%emt 00:09:01]} 19. Qb3
{[%clk 00:51:24]} {[%emt 00:03:33]} Bxd5 {[%clk 00:50:19]} {[%emt 00:04:48]} 20.
cxd5 {[%clk 00:50:02]} {[%emt 00:01:52]} Qd7 {[%clk 00:48:46]} {[%emt
00:02:04]} 21. Qg3 {[%clk 00:47:38]} {[%emt 00:02:53]} Qd6 {[%clk 00:48:33]}
{[%emt 00:00:43]} 22. Rb3 {[%clk 00:45:34]} {[%emt 00:02:34]} Nd7 {[%clk
00:44:36]} {[%emt 00:04:28]} 23. Rxb7 {[%clk 00:42:14]} {[%emt 00:03:49]} Rb8
{[%clk 00:42:33]} {[%emt 00:02:33]} 24. Ra7 {[%clk 00:29:12]} {[%emt 00:13:32]}
Rxb2 {[%clk 00:41:28]} {[%emt 00:01:35]} 25. Rxa6 {[%clk 00:28:57]} {[%emt
00:00:46]} Qb8 {[%clk 00:40:25]} {[%emt 00:01:32]} 26. Bg4 {[%clk 00:27:54]}
{[%emt 00:01:32]} Rb3 {[%clk 00:35:01]} {[%emt 00:05:54]} 27. Qh4 {[%clk
00:26:34]} {[%emt 00:01:50]} Rb1 {[%clk 00:34:23]} {[%emt 00:01:09]} 28. h3
{[%clk 00:24:02]} {[%emt 00:03:01]} Qb3 {[%clk 00:27:26]} {[%emt 00:07:27]} 29.
Rxb1 {[%clk 00:21:20]} {[%emt 00:03:12]} Qxb1+ {[%clk 00:27:48]} {[%emt
00:00:08]} 30. Kh2 {[%clk 00:21:47]} {[%emt 00:00:03]} Qxe4 {[%clk 00:27:55]}
{[%emt 00:00:24]} 31. Qg3 {[%clk 00:16:08]} {[%emt 00:06:09]} f5 {[%clk
00:19:34]} {[%emt 00:08:52]} 32. Bf3 {[%clk 00:16:04]} {[%emt 00:00:33]} Qd4
{[%clk 00:17:35]} {[%emt 00:02:29]} 33. Ra7 {[%clk 00:15:18]} {[%emt 00:01:16]}
Qa4 {[%clk 00:16:04]} {[%emt 00:02:02]} 34. Bd1 {[%clk 00:11:54]} {[%emt
00:03:54]} Qb5 {[%clk 00:13:08]} {[%emt 00:03:26]} 35. Qg5 {[%clk 00:11:58]}
{[%emt 00:00:25]} g6 {[%clk 00:13:18]} {[%emt 00:00:20]} 36. Qe7 {[%clk
00:11:44]} {[%emt 00:00:43]} Rf7 {[%clk 00:13:37]} {[%emt 00:00:11]} 37. Qe8+
{[%clk 00:11:15]} {[%emt 00:00:59]} Kg7 {[%clk 00:13:12]} {[%emt 00:00:55]} 38.
a6 {[%clk 00:10:35]} {[%emt 00:01:10]} c4 {[%clk 00:09:50]} {[%emt 00:03:53]}
39. Qe6 {[%clk 00:08:09]} {[%emt 00:02:56]} c3 {[%clk 00:05:31]} {[%emt
00:04:49]} 40. Rb7 {[%clk 00:07:32]} {[%emt 00:01:06]} c2 {[%clk 00:04:04]}
{[%emt 00:01:57]} 41. Bxc2 {[%clk 00:03:31]} {[%emt 00:04:32]} Qc4 {[%clk
00:03:53]} {[%emt 00:00:41]} 42. Rxd7 {[%clk 00:02:33]} {[%emt 00:01:28]} Qf4+
{[%clk 00:04:07]} {[%emt 00:00:16]} 43. Kg1 {[%clk 00:02:47]} {[%emt 00:00:14]}
Qc1+ {[%clk 00:04:35]} {[%emt 00:00:04]} 44. Bd1 {[%clk 00:02:59]} {[%emt
00:00:18]} Qxd1+ {[%clk 00:05:01]} {[%emt 00:00:04]} 45. Kh2 {[%clk 00:03:23]}
{[%emt 00:00:05]} Rxd7 {[%clk 00:05:23]} {[%emt 00:00:08]} 46. Qxd7+ {[%clk
00:03:47]} {[%emt 00:00:06]} Kh6 {[%clk 00:05:49]} {[%emt 00:00:04]} 47. Qa7
{[%clk 00:15:45]} {[%emt 00:18:32]} Qxd5 {[%clk 00:35:08]} {[%emt 00:01:12]} 48.
Qb6 {[%clk 00:15:16]} {[%emt 00:00:58]} f4 {[%clk 00:30:19]} {[%emt 00:05:18]}
49. a7 {[%clk 00:14:12]} {[%emt 00:01:35]} Qa2 {[%clk 00:30:27]} {[%emt
00:00:21]} 50. Qc5 {[%clk 00:10:29]} {[%emt 00:04:13]} 1-0